fUST/lending_fUST_20250929
["ID","MTS","AMOUNT","RATE_DAILY","PERIOD"]
[388345716,1759113047559,-480.0,0.00027397,7]
[388345717,1759113047568,-480.0,0.00027397,7]
[388345718,1759113047578,-7928.42,0.00027397,7]
[388345719,1759113047588,-1211.97,0.00027397,7]
[388345720,1759113047597,-480.0,0.00027397,7]
[388345721,1759113047607,-480.0,0.00027397,7]
[388345722,1759113047617,-480.0,0.00027397,7]
[388345723,1759113047627,-480.0,0.00027397,7]
[388345724,1759113047636,-687.11,0.00027397,7]
[388345725,1759113047649,-3454.03,0.00027397,7]
[388345726,1759113047659,-480.0,0.00027397,7]
[388345727,1759113047669,-4411.38,0.00027397,7]
[388345729,1759113047678,-480.0,0.00027397,7]
[388345730,1759113047689,-606.25,0.00027397,7]
[388345731,1759113047699,-480.0,0.00027397,7]
[388345732,1759113047710,-770.79,0.00027397,7]
[388345733,1759113047721,-480.0,0.00027397,7]
[388345734,1759113047735,-480.0,0.00027397,7]
[388345735,1759113047747,-918.96,0.00027397,7]
[388345736,1759113047759,-1574.34,0.00027397,7]
[388345737,1759113047768,-480.0,0.00027397,7]
[388345738,1759113047778,-480.0,0.00027397,7]
[388345739,1759113047788,-480.0,0.00027397,7]
[388345740,1759113047799,-151.0,0.00027397,7]
[388345741,1759113047809,-151.0,0.00027397,7]
[388345742,1759113047818,-172.14,0.00027397,7]
[388345743,1759113047828,-480.0,0.00027397,7]
[388345744,1759113047838,-480.0,0.00027397,7]
[388345745,1759113047848,-481.76940578,0.00027397,7]
[388345746,1759113047858,-178.58379571,0.00027397,7]
[388345747,1759113047868,-2709.9,0.00027397,7]
[388345748,1759113047879,-480.0,0.00027397,7]
[388345749,1759113047891,-480.0,0.00027397,7]
[388345750,1759113047902,-943.91,0.00027397,7]
[388345751,1759113047912,-480.0,0.00027397,7]
[388345752,1759113047922,-480.0,0.00027397,7]
[388345753,1759113047931,-480.0,0.00027397,7]
[388345754,1759113047942,-480.0,0.00027397,7]
[388345755,1759113047952,-398.29033028,0.00027397,7]
[388345756,1759113047962,-480.0,0.00027397,7]
[388345757,1759113047971,-1124.59,0.00027397,7]
[388345758,1759113047982,-720.81,0.00027397,7]
[388345759,1759113047991,-1658.23,0.00027397,7]
[388345760,1759113048001,-379.69275984,0.00027397,7]
[388345761,1759113048011,-849.17,0.00027397,7]
[388345762,1759113048021,-1191.78,0.00027397,7]
[388345763,1759113048031,-1176.52,0.00027397,7]
[388345764,1759113048040,-201.881643,0.00027397,7]
[388345765,1759113048050,-151.0,0.00027397,7]
[388345766,1759113048060,-151.0,0.00027397,7]
[388345767,1759113048070,-151.0,0.00027397,7]
[388345768,1759113048080,-151.0,0.00027397,7]
[388345769,1759113048089,-169.744896,0.00027397,7]
[388345770,1759113048098,-1540.02,0.00027397,7]
[388345771,1759113048107,-480.0,0.00027397,7]
[388345772,1759113048116,-151.0,0.00027397,7]
[388345773,1759113048126,-838.47,0.00027397,7]
[388345774,1759113048136,-151.0,0.00027397,7]
[388345775,1759113048146,-480.0,0.00027397,7]
[388345776,1759113048156,-480.0,0.00027397,7]
[388345777,1759113048167,-480.0,0.00027397,7]
[388345778,1759113048177,-1639.19,0.00027397,7]
[388345779,1759113048187,-480.0,0.00027397,7]
[388345780,1759113048198,-159.99022613,0.00027397,7]
[388345781,1759113048208,-934.17,0.00027397,7]
[388345782,1759113048218,-480.0,0.00027397,7]
[388345783,1759113048228,-1895.39,0.00027397,7]
[388345784,1759113048237,-480.0,0.00027397,7]
[388345785,1759113048247,-1968.31,0.00027397,7]
[388345786,1759113048266,-1959.96,0.00027397,7]
[388345787,1759113048275,-1551.45,0.00027397,7]
[388345788,1759113048285,-603.41,0.00027397,7]
[388345789,1759113048294,-480.0,0.00027397,7]
[388345790,1759113048303,-158.55697,0.00027397,7]
[388345791,1759113048313,-158.55697,0.00027397,7]
[388345792,1759113048323,-1708.59,0.00027397,7]
[388345793,1759113048332,-158.55697,0.00027397,7]
[388345794,1759113048342,-158.55697,0.00027397,7]
[388345795,1759113048352,-480.0,0.00027397,7]
[388345796,1759113048361,-158.55697,0.00027397,7]
[388345797,1759113048371,-158.55697,0.00027397,7]
[388345798,1759113048380,-158.55697,0.00027397,7]
[388345799,1759113048390,-158.55697,0.00027397,7]
[388345800,1759113048400,-158.55697,0.00027397,7]
[388345801,1759113048411,-158.55697,0.00027397,7]
[388345802,1759113048420,-480.0,0.00027397,7]
[388345803,1759113048430,-158.55697,0.00027397,7]
[388345804,1759113048440,-531.03,0.00027397,7]
[388345805,1759113048449,-158.55697,0.00027397,7]
[388345806,1759113048459,-1701.32,0.00027397,7]
[388345807,1759113048468,-480.0,0.00027397,7]
[388345808,1759113048478,-158.55697,0.00027397,7]
[388345809,1759113048487,-4573.72,0.00027397,7]
[388345810,1759113048496,-158.55697,0.00027397,7]
[388345811,1759113048505,-158.55697,0.00027397,7]
[388345812,1759113048515,-876.44,0.00027397,7]
[388345813,1759113048524,-158.556966,0.00027397,7]
[388345814,1759113048533,-849.04,0.00027397,7]
[388345815,1759113048543,-4551.43,0.00027397,7]
[388345816,1759113048553,-917.67,0.00027397,7]
[388345817,1759113048563,-480.0,0.00027397,7]
[388345818,1759113048572,-2136.41,0.00027397,7]
[388345819,1759113048582,-740.82,0.00027397,7]
[388345820,1759113048592,-480.0,0.00027397,7]
[388345821,1759113048602,-1503.27,0.00027397,7]
[388345822,1759113048612,-591.358259,0.00027397,7]
[388345823,1759113048622,-591.358259,0.00027397,7]
[388345824,1759113048632,-591.358259,0.00027397,7]
[388345825,1759113048643,-591.358259,0.00027397,7]
[388345826,1759113048655,-591.358259,0.00027397,7]
[388345827,1759113048665,-591.358259,0.00027397,7]
[388345828,1759113048675,-591.358259,0.00027397,7]
[388345829,1759113048685,-1791.22,0.00027397,7]
[388345830,1759113048695,-591.358259,0.00027397,7]
[388345831,1759113048704,-591.358259,0.00027397,7]
[388345832,1759113048714,-3358.99,0.00027397,7]
[388345833,1759113048728,-591.358259,0.00027397,7]
[388345834,1759113048738,-591.358259,0.00027397,7]
[388345835,1759113048748,-591.358259,0.00027397,7]
[388345836,1759113048758,-480.0,0.00027397,7]
[388345837,1759113048768,-591.358259,0.00027397,7]
[388345838,1759113048777,-591.358259,0.00027397,7]
[388345839,1759113048787,-591.358259,0.00027397,7]
[388345840,1759113048796,-480.0,0.00027397,7]
[388345841,1759113048806,-591.358252,0.00027397,7]
[388345842,1759113048817,-480.0,0.00027397,7]
[388345843,1759113048827,-480.0,0.00027397,7]
[388345844,1759113048837,-6156.63,0.00027397,3]
[388345845,1759113048847,-480.0,0.00027397,7]
[388345846,1759113048856,-480.0,0.00027397,7]
[388345847,1759113048866,-899.65,0.00027397,7]
[388345848,1759113048875,-151.0,0.00027397,2]
[388345849,1759113048885,-1205.66,0.00027397,7]
[388345850,1759113048894,-480.0,0.00027397,7]
[388345851,1759113048903,-480.0,0.00027397,7]
[388345852,1759113048913,-2904.08,0.00027397,7]
[388345853,1759113048922,-480.0,0.00027397,7]
[388345854,1759113048932,-3662.62,0.00027397,7]
[388345855,1759113048941,-480.0,0.00027397,7]
[388345856,1759113048951,-480.0,0.00027397,7]
[388345857,1759113048960,-480.0,0.00027397,7]
[388345858,1759113048970,-480.0,0.00027397,7]
[388345859,1759113048979,-3809.84,0.00027397,7]
[388345860,1759113048988,-687.24,0.00027397,7]
[388345861,1759113048997,-16617.26,0.00027397,7]
[388345862,1759113049007,-3581.93,0.00027397,7]
[388345863,1759113049017,-637.53,0.00027397,7]
[388345864,1759113049026,-480.0,0.00027397,7]
[388345865,1759113049036,-485.85,0.00027397,7]
[388345866,1759113049046,-2543.545217,0.00027397,7]
[388345867,1759113049055,-2543.545217,0.00027397,7]
[388345869,1759113049065,-2543.545217,0.00027397,7]
[388345874,1759113049133,-2543.545217,0.00027397,7]
[388345875,1759113049141,-566.68,0.00027397,7]
[388345876,1759113049150,-2543.545217,0.00027397,7]
[388345877,1759113049159,-2543.545217,0.00027397,7]
[388345878,1759113049168,-2543.545217,0.00027397,7]
[388345879,1759113049178,-505.679891,0.00027397,7]
[388345880,1759113049187,-2543.545217,0.00027397,7]
[388345881,1759113049196,-2543.545217,0.00027397,7]
[388345882,1759113049205,-480.0,0.00027397,7]
[388345883,1759113049214,-2543.545217,0.00027397,7]
[388345884,1759113049223,-2543.545217,0.00027397,7]
[388345885,1759113049232,-480.0,0.00027397,7]
[388345886,1759113049241,-2543.545217,0.00027397,7]
[388345887,1759113049251,-480.0,0.00027397,7]
[388345888,1759113049260,-2543.545217,0.00027397,7]
[388345889,1759113049269,-2543.545217,0.00027397,7]
[388345890,1759113049279,-2543.545217,0.00027397,7]
[388345891,1759113049288,-2543.545218,0.00027397,7]
[388345892,1759113049297,-858.28,0.00027397,7]
[388345893,1759113049306,-706.54,0.00027397,7]
[388345894,1759113049316,-523.55545063,0.00027397,7]
[388345895,1759113049325,-876.87,0.00027397,7]
[388345896,1759113049334,-480.0,0.00027397,7]
[388345897,1759113049343,-637.26,0.00027397,7]
[388345898,1759113049352,-1886.7,0.00027397,7]
[388345899,1759113049362,-3679.08,0.00027397,7]
[388345901,1759113049372,-859.27,0.00027397,7]
[388345902,1759113049382,-151.0,0.00027397,7]
[388345904,1759113049391,-151.0,0.00027397,7]
[388345906,1759113049399,-151.0,0.00027397,7]
[388345907,1759113049408,-151.0,0.00027397,7]
[388345908,1759113049417,-480.0,0.00027397,7]
[388345909,1759113049426,-151.0,0.00027397,7]
[388345910,1759113049435,-481.21552353,0.00027397,7]
[388345911,1759113049444,-811.23,0.00027397,7]
[388345912,1759113049454,-151.0,0.00027397,7]
[388345914,1759113049462,-151.0,0.00027397,7]
[388345915,1759113049471,-151.0,0.00027397,7]
[388345916,1759113049480,-480.0,0.00027397,7]
[388345917,1759113049489,-151.0,0.00027397,7]
[388345919,1759113049498,-480.0,0.00027397,7]
[388345920,1759113049507,-151.0,0.00027397,7]
[388345921,1759113049516,-151.0,0.00027397,7]
[388345922,1759113049526,-151.0,0.00027397,7]
[388345923,1759113049536,-908.88,0.00027397,7]
[388345924,1759113049545,-151.0,0.00027397,7]
[388345925,1759113049555,-151.0,0.00027397,7]
[388345927,1759113049563,-153.294272,0.00027397,7]
[388345929,1759113049573,-807.26,0.00027397,7]
[388345930,1759113049582,-480.0,0.00027397,7]
[388345931,1759113049591,-1201.35770855,0.00027397,7]
[388345932,1759113049892,-1949.69229145,0.00027397,7]
[388345933,1759113049901,-3533.24,0.00027397,7]
[388345934,1759113049911,-7449.42,0.00027397,7]
[388345935,1759113049920,-669.39,0.00027397,7]
[388345936,1759113049930,-1197.04,0.00027397,7]
[388345937,1759113049939,-249.87734447,0.00027397,7]
[388345938,1759113049948,-586.5,0.00027397,7]
[388345939,1759113049957,-480.0,0.00027397,7]
[388345940,1759113049966,-768.79,0.00027397,7]
[388345941,1759113049975,-681.89,0.00027397,7]
[388345942,1759113049984,-520.19,0.00027397,7]
[388345943,1759113049993,-480.0,0.00027397,7]
[388345944,1759113050002,-480.86218809,0.00027397,7]
[388345945,1759113050011,-480.0,0.00027397,7]
[388345946,1759113050021,-480.0,0.00027397,7]
[388345947,1759113050031,-151.0,0.00027397,7]
[388345948,1759113050040,-151.0,0.00027397,7]
[388345949,1759113050049,-151.0,0.00027397,7]
[388345950,1759113050059,-151.0,0.00027397,7]
[388345951,1759113050067,-151.0,0.00027397,7]
[388345952,1759113050077,-480.0,0.00027397,7]
[388345953,1759113050087,-480.0,0.00027397,7]
[388345954,1759113050096,-579.43,0.00027397,7]
[388345955,1759113050106,-480.0,0.00027397,7]
[388345956,1759113050115,-505.36,0.00027397,7]
[388345957,1759113050125,-480.0,0.00027397,7]
[388345958,1759113050134,-480.0,0.00027397,7]
[388345959,1759113050143,-480.0,0.00027397,7]
[388345960,1759113050152,-738.54,0.00027397,7]
[388345961,1759113050161,-571.2,0.00027397,7]
[388345962,1759113050171,-480.0,0.00027397,7]
[388345963,1759113050180,-7542.46,0.00027397,7]
[388345964,1759113050189,-151.0,0.00027397,7]
[388345965,1759113050199,-639.77,0.00027397,7]
[388345966,1759113050207,-250.829168,0.00027397,7]
[388345967,1759113050216,-480.0,0.00027397,7]
[388345968,1759113050225,-8626.59,0.00027397,7]
[388345969,1759113050235,-2000.3,0.0002748,2]
[388345970,1759113050244,-2471.0,0.000275,23]
[388345971,1759113050254,-652.0,0.000275,2]
[388345972,1759113050263,-9457.75091745,0.00027571,2]
[388345973,1759113050272,-168.0,0.00027593,2]
[388345974,1759113050281,-531.11100013,0.00027595,2]
[388345975,1759113050291,-200.0,0.0002767,10]
[388345976,1759113050300,-151.0,0.00027671,7]
[388345977,1759113050310,-200.46362637,0.00027671,7]
[388345978,1759113050319,-151.0,0.00027671,7]
[388345979,1759113050330,-665.0,0.00027671,7]
[388345980,1759113050339,-151.0,0.00027671,2]
[388345981,1759113050348,-480.0,0.00027671,7]
[388345982,1759113050358,-480.0,0.00027671,7]
[388345983,1759113050368,-480.0,0.00027671,7]
[388345984,1759113050377,-480.92,0.00027671,7]
[388345985,1759113050387,-554.72,0.00027671,7]
[388345986,1759113050397,-531.6,0.00027671,7]
[388345987,1759113050406,-480.0,0.00027671,7]
[388345988,1759113050416,-468.03272221,0.00027671,7]
[388345989,1759113050426,-481.57174167,0.00027671,7]
[388345990,1759113050436,-621.58,0.00027671,7]
[388345991,1759113050446,-485.28,0.00027671,7]
[388345992,1759113050455,-480.0,0.00027671,7]
[388345993,1759113050465,-480.0,0.00027671,7]
[388345994,1759113050475,-480.0,0.00027671,7]
[388345995,1759113050484,-481.17687632,0.00027671,7]
[388345996,1759113050494,-480.0,0.00027671,7]
[388345997,1759113050504,-481.38661276,0.00027671,7]
[388345998,1759113050515,-495.43616252,0.00027671,7]
[388345999,1759113050524,-480.0,0.00027671,7]
[388346000,1759113050534,-480.0,0.00027671,7]
[388346001,1759113050544,-480.0,0.00027671,7]
[388346002,1759113050554,-480.0,0.00027671,7]
[388346003,1759113050564,-518.21598988,0.00027671,7]
[388346004,1759113050574,-480.0,0.00027671,7]
[388346005,1759113050585,-498.31525724,0.00027671,7]
[388346006,1759113050595,-480.0,0.00027671,7]
[388346007,1759113050605,-603.88,0.00027671,7]
[388346008,1759113050615,-480.0,0.00027671,7]
[388346009,1759113050624,-480.0,0.00027671,7]
[388346010,1759113050634,-480.0,0.00027671,7]
[388346011,1759113050648,-480.0,0.00027671,7]
[388346012,1759113050658,-671.25,0.00027671,7]
[388346013,1759113050667,-480.0,0.00027671,7]
[388346014,1759113050678,-480.0,0.00027671,7]
[388346015,1759113050689,-480.0,0.00027671,7]
[388346016,1759113050699,-478.09651091,0.00027671,7]
[388346017,1759113050709,-480.0,0.00027671,7]
[388346018,1759113050721,-502.01,0.00027671,7]
[388346019,1759113050731,-480.0,0.00027671,7]
[388346020,1759113050742,-477.67383124,0.00027671,7]
[388346021,1759113050752,-477.91091285,0.00027671,7]
[388346022,1759113050762,-480.0,0.00027671,7]
[388346023,1759113050772,-480.0,0.00027671,7]
[388346024,1759113050782,-484.17828141,0.00027671,7]
[388346025,1759113050792,-532.8,0.00027671,7]
[388346026,1759113050802,-509.63424459,0.00027671,7]
[388346027,1759113050813,-480.0,0.00027671,7]
[388346028,1759113050823,-480.0,0.00027671,7]
[388346029,1759113050832,-480.0,0.00027671,7]
[388346030,1759113050843,-478.00198114,0.00027671,7]
[388346031,1759113050853,-480.0,0.00027671,7]
[388346032,1759113050862,-480.0,0.00027671,7]
[388346033,1759113050872,-673.92,0.00027671,7]
[388346034,1759113050882,-480.0,0.00027671,7]
[388346035,1759113050892,-499.75816364,0.00027671,7]
[388346036,1759113050902,-480.0,0.00027671,7]
[388346037,1759113050911,-480.0,0.00027671,7]
[388346038,1759113050920,-480.0,0.00027671,7]
[388346039,1759113050930,-480.0,0.00027671,7]
[388346040,1759113050942,-1305.19,0.00027671,7]
[388346041,1759113050952,-480.0,0.00027671,7]
[388346042,1759113050962,-480.0,0.00027671,7]
[388346043,1759113050971,-533.76,0.00027671,7]
[388346044,1759113050981,-233.17907547,0.00027671,7]
[388346045,1759113050991,-497.49,0.00027671,7]
[388346046,1759113051000,-895.89,0.00027671,7]
[388346047,1759113051011,-480.0,0.00027671,7]
[388346048,1759113051020,-480.0,0.00027671,7]
[388346049,1759113051030,-480.0,0.00027671,7]
[388346050,1759113051040,-480.0,0.00027671,7]
[388346051,1759113051049,-480.0,0.00027671,7]
[388346052,1759113051059,-480.0,0.00027671,7]
[388346053,1759113051068,-629.01,0.00027671,7]
[388346054,1759113051080,-480.0,0.00027671,7]
[388346055,1759113051097,-619.97,0.00027671,7]
[388346056,1759113051106,-619.6,0.00027671,7]
[388346057,1759113051116,-480.0,0.00027671,7]
[388346058,1759113051125,-865.74,0.00027671,7]
[388346059,1759113051135,-478.04169211,0.00027671,7]
[388346060,1759113051145,-480.0,0.00027671,7]
[388346061,1759113051155,-480.0,0.00027671,7]
[388346062,1759113051164,-653.26,0.00027671,7]
[388346063,1759113051174,-480.0,0.00027671,7]
[388346064,1759113051184,-1209.92,0.00027671,7]
[388346065,1759113051194,-480.0,0.00027671,7]
[388346066,1759113051204,-480.0,0.00027671,7]
[388346067,1759113051213,-480.0,0.00027671,7]
[388346068,1759113051223,-521.18,0.00027671,7]
[388346069,1759113051233,-480.0,0.00027671,7]
[388346070,1759113051243,-480.0,0.00027671,7]
[388346071,1759113051263,-1847.88,0.00027671,7]
[388346072,1759113051273,-755.43,0.00027671,7]
[388346073,1759113051284,-480.0,0.00027671,7]
[388346074,1759113051293,-480.0,0.00027671,7]
[388346075,1759113051303,-480.0,0.00027671,7]
[388346076,1759113051313,-480.0,0.00027671,7]
[388346077,1759113051323,-344.53714551,0.00027671,7]
[388346078,1759113051333,-480.0,0.00027671,7]
[388346079,1759113051343,-480.0,0.00027671,7]
[388346080,1759113051353,-480.0,0.00027671,7]
[388346081,1759113051363,-480.0,0.00027671,7]
[388346082,1759113051373,-723.16,0.00027671,7]
[388346083,1759113051383,-480.0,0.00027671,7]
[388346084,1759113051394,-480.0,0.00027671,7]
[388346085,1759113051404,-536.72811761,0.00027671,7]
[388346086,1759113051414,-480.0,0.00027671,7]
[388346087,1759113051424,-480.0,0.00027671,7]
[388346088,1759113051434,-897.54,0.00027671,7]
[388346089,1759113051445,-480.0,0.00027671,7]
[388346090,1759113051456,-480.0,0.00027671,7]
[388346091,1759113051466,-760.51,0.00027671,7]
[388346092,1759113051477,-160.44796628,0.00027671,7]
[388346093,1759113051496,-319.55203372,0.00027671,7]
[388346094,1759113051506,-494.79,0.00027671,7]
[388346095,1759113051517,-480.0,0.00027671,7]
[388346096,1759113051527,-480.0,0.00027671,7]
[388346097,1759113051538,-710.07,0.00027671,7]
[388346098,1759113051547,-10.2624512,0.00027671,7]
[388346099,1759113051868,-193.09367876,0.00027671,7]
[388347240,1759113177884,-403.0,0.00024769,2]
[388347242,1759113179777,-190.70646133,0.00024769,2]
[388347243,1759113181468,-406.29353867,0.00024769,2]
[388347244,1759113181489,-458.65792602,0.00024953,2]
[388347245,1759113181511,-815.78853531,0.00024953,2]
[388347246,1759113183175,-413.31176625,0.00024953,2]
[388347247,1759113185607,-56.84793219,0.00024953,2]
[388347248,1759113187535,-423.15206781,0.00024703,2]
[388347249,1759113191634,-480.0,0.00024703,2]
[388347250,1759113197322,-190.70646133,0.00024456,2]
[388347251,1759113197345,-221.28417137,0.00024603,2]
[388347252,1759113200998,-258.1311373,0.00024603,2]
[388347253,1759113203182,-341.34207398,0.00024357,2]
[388347254,1759113205797,-449.41719869,0.00024357,2]
[388347255,1759113207809,-480.0,0.00024357,2]
[388347256,1759113209558,-490.16367659,0.00024357,2]
[388347257,1759113212080,-372.89394937,0.00024357,2]
[388347258,1759113213856,-329.32896301,0.00024357,2]
[388347259,1759113217970,-369.03704191,0.00024357,2]
[388347260,1759113218082,-238.1311373,0.00024603,2]
[388347261,1759113218206,411.9906327,0.00024113,2]
[388347262,1759113219744,-170.67103699,0.00024603,2]
[388347263,1759113225741,-45.59653011,0.00024603,2]
[388347264,1759113225764,-210.87267886,0.00024703,2]
[388347265,1759113226258,2701.27699894,0.00024357,2]
[388347266,1759113228419,-286.23654563,0.00024703,2]
[388347268,1759113230683,-194.14218019,0.00024703,2]
[388347269,1759113232333,-434.5310778,0.00024703,2]
[388347270,1759113235184,-372.47809282,0.00024703,2]
[388347271,1759113239994,-197.9511373,0.00024703,2]
[388347272,1759113241536,-238.59486389,0.00024703,2]
[388347273,1759113241889,4260.0862053,0.00024357,2]
[388347274,1759113243745,-279.81258499,0.00024703,2]
[388347275,1759113245950,-296.44784416,0.00024703,2]
[388347276,1759113249668,-562.01705318,0.00024703,2]
[388347277,1759113250322,1888.58207924,0.00024357,2]
[388347278,1759113250344,3111.41792076,0.00024357,2]
[388347279,1759113252437,-1023.76387337,0.00024703,2]
[388347280,1759113252459,-150.45612663,0.00024703,2]
[388347282,1759113254869,-21.36205353,0.00024703,2]
[388347283,1759113290057,-300.0,0.000247,2]
[388347284,1759113299768,-300.0,0.000247,2]
[388347285,1759113310759,-173.32991866,0.000247,2]
[388347286,1759113312250,-126.67008134,0.000247,2]
[388347287,1759113452751,1002.0,0.00024,5]
[388347288,1759113455397,-333.13073079,0.00024703,2]
[388347289,1759113457082,-597.13878956,0.00024703,2]
[388347290,1759113458121,184.32,0.00033818,60]
[388347291,1759113460710,-194.18492209,0.00024703,2]
[388347292,1759113464786,-480.0,0.00024703,2]
[388347293,1759113467729,-489.92513588,0.00024703,2]
[388347294,1759113470429,-300.0,0.00024703,2]
[388347295,1759113473544,-203.56282027,0.00024703,2]
[388347296,1759113476117,-243.56662982,0.00024703,2]
[388347297,1759113478292,-480.0,0.00024703,2]
[388347298,1759113480287,197.36,0.00018182,2]
[388347299,1759113481029,-220.18741501,0.00024703,2]
[388347300,1759113484748,-480.0,0.00024703,2]
[388347301,1759113488424,-184.7570488,0.00024703,2]
[388347302,1759113491943,-264.04548125,0.00024703,2]
[388347303,1759113494793,-529.50102653,0.00024703,2]
[388347304,1759113501249,-231.04553746,0.00024703,2]
[388347305,1759113504199,-480.0,0.00024703,2]
[388347306,1759113507092,-160.30752746,0.00024703,2]
[388347307,1759113509497,-11.64693508,0.00024703,2]
[388347308,1759113514338,-622.5488356,0.00024601,2]
[388347309,1759113518340,-160.0,0.00024952,2]
[388347329,1759113553553,247.752169,0.00024683,2]
[388347330,1759113572635,150.0,0.00033785,60]
[388347331,1759113818916,-576.24976472,0.00024953,2]
[388347346,1759113879912,2094.0,0.00033785,60]
[388347365,1759114232398,-300.0,0.00025677,2]
[388347366,1759114232407,-230.0,0.00025677,2]
[388347367,1759114232416,-300.0,0.00025677,2]
[388347368,1759114232426,-1200.0,0.00025678,2]
[388347369,1759114232435,-1200.0,0.00025686,2]
[388347370,1759114232444,-340.15493402,0.00025687,2]
[388347371,1759114232453,-500.0,0.00025687,2]
[388347372,1759114232462,-394.76843694,0.00025687,2]
[388347373,1759114232471,-14377.5232188,0.00025688,2]
[388347375,1759114232481,-665.49933793,0.00025688,2]
[388347376,1759114232491,-665.49933793,0.00025688,2]
[388347377,1759114232500,-665.49933793,0.00025688,2]
[388347378,1759114232509,-665.49933793,0.00025688,2]
[388347379,1759114232521,-665.49933793,0.00025688,2]
[388347380,1759114232530,-665.49933793,0.00025688,2]
[388347381,1759114232540,-665.49933793,0.00025688,2]
[388347382,1759114232554,-665.49933793,0.00025688,2]
[388347383,1759114232563,-665.49933793,0.00025688,2]
[388347384,1759114232574,-665.49933793,0.00025688,2]
[388347385,1759114232583,-665.49933793,0.00025688,2]
[388347386,1759114232593,-665.49933793,0.00025688,2]
[388347387,1759114232604,-665.49933793,0.00025688,2]
[388347388,1759114232615,-665.49933793,0.00025688,2]
[388347389,1759114232625,-665.49933793,0.00025688,2]
[388347390,1759114232635,-665.49933793,0.00025688,2]
[388347391,1759114232645,-665.49933793,0.00025688,2]
[388347392,1759114232655,-665.49933793,0.00025688,2]
[388347393,1759114232666,-698.77430483,0.00025688,2]
[388347394,1759114232676,-698.77430483,0.00025688,2]
[388347395,1759114232685,-698.77430483,0.00025688,2]
[388347396,1759114232695,-698.77430483,0.00025688,2]
[388347397,1759114232703,-698.77430483,0.00025688,2]
[388347398,1759114232712,-698.77430483,0.00025688,2]
[388347399,1759114232721,-698.77430483,0.00025688,2]
[388347400,1759114232731,-698.77430483,0.00025688,2]
[388347401,1759114232741,-698.77430483,0.00025688,2]
[388347402,1759114232751,-698.77430483,0.00025688,2]
[388347403,1759114232761,-9082.49587904,0.00025689,2]
[388347404,1759114232773,-1000.23935348,0.00025689,2]
[388347498,1759114238446,-81545.28017336,0.00025689,2]
[388347549,1759114246451,-278371.98459412,0.00025689,2]
[388347551,1759114246462,-3684.44684399,0.00025698,2]
[388347553,1759114246471,-1000.0,0.00025798,2]
[388347555,1759114246480,-1000.0,0.00025798,2]
[388347557,1759114246490,-1000.0,0.00025798,2]
[388347559,1759114246499,-1000.0,0.00025798,2]
[388347560,1759114246508,-1000.0,0.00025798,2]
[388347562,1759114246517,-1000.0,0.00025798,2]
[388347564,1759114246527,-1000.0,0.00025798,2]
[388347566,1759114246537,-1000.0,0.00025798,2]
[388347568,1759114246546,-1000.0,0.00025798,2]
[388347570,1759114246556,-1000.0,0.00025798,2]
[388347572,1759114246566,-1000.0,0.00025798,2]
[388347574,1759114246575,-1000.0,0.00025798,2]
[388347576,1759114246584,-1000.0,0.00025798,2]
[388347578,1759114246594,-1000.0,0.00025798,2]
[388347580,1759114246603,-1000.0,0.00025798,2]
[388347582,1759114246613,-1000.0,0.00025798,2]